fUST/lending_fUST_20240721
["ID","MTS","AMOUNT","RATE_DAILY","PERIOD"]
[332759479,1721506251738,-500.0,0.00013972,2]
[332759480,1721506251747,-507.40824382,0.00013972,2]
[332759481,1721506251756,-11096.32,0.00013972,2]
[332759482,1721506251767,-500.0,0.00013972,2]
[332759483,1721506251776,-500.0,0.00013972,2]
[332759484,1721506251786,-694.69,0.00013972,2]
[332759485,1721506251796,-1940.47,0.00013972,2]
[332759486,1721506251806,-1320.32,0.00013972,2]
[332759487,1721506251816,-500.0,0.00013972,2]
[332759488,1721506251825,-573.91,0.00013972,2]
[332759489,1721506251835,-2632.34,0.00013972,2]
[332759490,1721506251845,-1034.45,0.00013972,2]
[332759491,1721506251855,-500.0,0.00013972,2]
[332759492,1721506251870,-769.84,0.00013972,2]
[332759493,1721506251879,-502.76716104,0.00013972,2]
[332759494,1721506251889,-9556.66,0.00013972,2]
[332759495,1721506251898,-500.0,0.00013972,2]
[332759496,1721506251909,-3096.48,0.00013972,2]
[332759497,1721506251919,-500.0,0.00013972,2]
[332759498,1721506251928,-500.0,0.00013972,2]
[332759499,1721506251937,-500.0,0.00013972,2]
[332759500,1721506251948,-500.0,0.00013972,2]
[332759501,1721506251958,-502.87,0.00013972,2]
[332759502,1721506251968,-819.96,0.00013972,2]
[332759503,1721506251978,-500.0,0.00013972,2]
[332759504,1721506251988,-500.0,0.00013972,2]
[332759505,1721506251998,-3023.06,0.00013972,2]
[332759506,1721506252008,-560.73301691,0.00013972,2]
[332759507,1721506252017,-500.0,0.00013972,2]
[332759508,1721506252027,-500.0,0.00013972,2]
[332759509,1721506252036,-500.0,0.00013972,2]
[332759510,1721506252046,-500.0,0.00013972,2]
[332759511,1721506252056,-500.0,0.00013972,2]
[332759512,1721506252066,-1149.23,0.00013972,2]
[332759513,1721506252076,-1214.52,0.00013972,2]
[332759514,1721506252085,-500.0,0.00013972,2]
[332759515,1721506252095,-500.0,0.00013972,2]
[332759516,1721506252105,-500.0,0.00013972,2]
[332759517,1721506252115,-500.0,0.00013972,2]
[332759518,1721506252125,-500.0,0.00013972,2]
[332759519,1721506252135,-500.0,0.00013972,2]
[332759520,1721506252145,-500.0,0.00013972,2]
[332759521,1721506252155,-500.0,0.00013972,2]
[332759522,1721506252166,-500.0,0.00013972,2]
[332759523,1721506252176,-848.62,0.00013972,2]
[332759524,1721506252186,-1494.97,0.00013972,2]
[332759525,1721506252196,-2011.6,0.00013972,2]
[332759526,1721506252206,-1089.64,0.00013972,2]
[332759527,1721506252216,-1294.05,0.00013972,2]
[332759528,1721506252226,-575.38,0.00013972,2]
[332759529,1721506252235,-14274.59,0.00013972,2]
[332759530,1721506252245,-500.0,0.00013972,2]
[332759531,1721506252256,-500.0,0.00013972,2]
[332759532,1721506252266,-902.47,0.00013972,2]
[332759533,1721506252275,-1276.73,0.00013972,2]
[332759534,1721506252285,-34531.25,0.00013972,2]
[332759535,1721506252295,-942.04,0.00013972,2]
[332759536,1721506252304,-500.0,0.00013972,2]
[332759537,1721506252314,-500.0,0.00013972,2]
[332759538,1721506252324,-421.88467126,0.00013972,2]
[332759539,1721506252333,-1528.42,0.00013972,2]
[332759540,1721506252343,-500.0,0.00013972,2]
[332759541,1721506252352,-500.0,0.00013972,2]
[332759542,1721506252361,-500.0,0.00013972,2]
[332759543,1721506252371,-2180.31,0.00013972,2]
[332759544,1721506252381,-533.02,0.00013972,2]
[332759545,1721506252391,-500.0,0.00013972,2]
[332759546,1721506252401,-997.36,0.00013972,2]
[332759547,1721506252411,-1611.73,0.00013972,2]
[332759548,1721506252421,-500.0,0.00013972,2]
[332759549,1721506252432,-500.0,0.00013972,2]
[332759550,1721506252441,-500.0,0.00013972,2]
[332759551,1721506252451,-500.0,0.00013972,2]
[332759552,1721506252461,-807.74,0.00013972,2]
[332759553,1721506252471,-518.24520718,0.00013972,2]
[332759554,1721506252481,-500.0,0.00013972,2]
[332759555,1721506252491,-514.71,0.00013972,2]
[332759556,1721506252500,-2554.46,0.00013972,2]
[332759557,1721506252510,-3088.33,0.00013972,2]
[332759558,1721506252520,-2477.78,0.00013972,2]
[332759559,1721506252531,-500.0,0.00013972,2]
[332759560,1721506252540,-500.0,0.00013972,2]
[332759561,1721506252550,-753.14,0.00013972,2]
[332759562,1721506252560,-500.0,0.00013972,2]
[332759563,1721506252571,-985.43,0.00013972,2]
[332759564,1721506252581,-500.0,0.00013972,2]
[332759565,1721506252590,-500.0,0.00013972,2]
[332759566,1721506252600,-500.0,0.00013972,2]
[332759567,1721506252610,-500.0,0.00013972,2]
[332759568,1721506252620,-500.0,0.00013972,2]
[332759569,1721506252630,-1292.27,0.00013972,2]
[332759570,1721506252639,-2248.5,0.00013972,2]
[332759571,1721506252649,-500.0,0.00013972,2]
[332759572,1721506252658,-2877.29,0.00013972,2]
[332759573,1721506252670,-150.112233,0.00014,3]
[332759574,1721506252679,-150.112233,0.00014,3]
[332759575,1721506252688,-150.112233,0.000141,4]
[332759576,1721506252698,-150.112233,0.000142,5]
[332759577,1721506252708,-1408.0,0.00014222,2]
[332759578,1721506252718,-500.0,0.00014246,2]
[332759579,1721506252727,-500.0,0.00014246,2]
[332759580,1721506252738,-500.0,0.00014246,2]
[332759581,1721506252748,-2281.54,0.00014246,2]
[332759582,1721506252758,-500.0,0.00014246,2]
[332759583,1721506252769,-500.0,0.00014246,2]
[332759584,1721506252779,-500.0,0.00014246,2]
[332759585,1721506252789,-518.64,0.00014246,2]
[332759586,1721506252800,-500.0,0.00014246,2]
[332759587,1721506252809,-520.8514786,0.00014246,2]
[332759588,1721506252819,-500.0,0.00014246,2]
[332759589,1721506252829,-161.72252877,0.00014246,2]
[332759590,1721506252838,-578.61,0.00014246,2]
[332759591,1721506252848,-504.01346212,0.00014246,2]
[332759592,1721506252858,-500.0,0.00014246,2]
[332759593,1721506252870,-500.0,0.00014246,2]
[332759594,1721506252880,-688.02,0.00014246,2]
[332759595,1721506252890,-1006.7,0.00014246,2]
[332759596,1721506252900,-500.0,0.00014246,2]
[332759597,1721506252909,-558.88,0.00014246,2]
[332759598,1721506252922,-500.0,0.00014246,2]
[332759599,1721506252932,-500.0,0.00014246,2]
[332759600,1721506252942,-500.0,0.00014246,2]
[332759601,1721506252953,-1351.75,0.00014246,2]
[332759602,1721506252963,-500.0,0.00014246,2]
[332759603,1721506252973,-611.66,0.00014246,2]
[332759604,1721506252983,-594.49,0.00014246,2]
[332759605,1721506252994,-732.38,0.00014246,2]
[332759606,1721506253005,-500.0,0.00014246,2]
[332759607,1721506253016,-500.0,0.00014246,2]
[332759608,1721506253025,-546.65,0.00014246,2]
[332759609,1721506253036,-1717.99,0.00014246,2]
[332759610,1721506253046,-500.0,0.00014246,2]
[332759611,1721506253056,-500.0,0.00014246,2]
[332759612,1721506253066,-982.46,0.00014246,2]
[332759613,1721506253076,-500.0,0.00014246,2]
[332759614,1721506253086,-2209.62,0.00014246,2]
[332759615,1721506253096,-500.0,0.00014246,2]
[332759616,1721506253107,-415.26668233,0.00014246,2]
[332759617,1721506253116,-500.0,0.00014246,2]
[332759618,1721506253126,-500.0,0.00014246,2]
[332759619,1721506253135,-500.0,0.00014246,2]
[332759620,1721506253145,-274.77327132,0.00014246,2]
[332759621,1721506253155,-337.62634337,0.00014246,2]
[332759622,1721506253166,-508.54564734,0.00014246,2]
[332759623,1721506253178,-500.0,0.00014246,2]
[332759624,1721506253188,-500.0,0.00014246,2]
[332759625,1721506253198,-500.0,0.00014246,2]
[332759626,1721506253209,-502.03335675,0.00014246,2]
[332759627,1721506253219,-307.19556289,0.00014246,2]
[332759628,1721506253228,-1273.27,0.00014246,2]
[332759629,1721506253239,-504.399664,0.00014246,2]
[332759630,1721506253249,-585.29,0.00014246,2]
[332759631,1721506253259,-500.0,0.00014246,2]
[332759632,1721506253268,-500.0,0.00014246,2]
[332759633,1721506253278,-500.0,0.00014246,2]
[332759634,1721506253288,-500.0,0.00014246,2]
[332759635,1721506253297,-908.99,0.00014246,2]
[332759636,1721506253307,-391.90915622,0.00014246,2]
[332759637,1721506253317,-912.49,0.00014246,2]
[332759638,1721506253327,-500.0,0.00014246,2]
[332759639,1721506253337,-500.0,0.00014246,2]
[332759640,1721506253347,-500.0,0.00014246,2]
[332759641,1721506253357,-500.0,0.00014246,2]
[332759642,1721506253368,-547.56,0.00014246,2]
[332759643,1721506253379,-500.0,0.00014246,2]
[332759644,1721506253389,-500.0,0.00014246,2]
[332759645,1721506253399,-500.0,0.00014246,2]
[332759646,1721506253409,-740.02,0.00014246,2]
[332759647,1721506253420,-500.0,0.00014246,2]
[332759648,1721506253430,-1001.96,0.00014246,2]
[332759649,1721506253439,-500.0,0.00014246,2]
[332759650,1721506253449,-782.62,0.00014246,2]
[332759651,1721506253460,-500.0,0.00014246,2]
[332759652,1721506253472,-512.08117975,0.00014246,2]
[332759653,1721506253535,-3109.54,0.00014246,2]
[332759654,1721506253545,-611.34,0.00014246,2]
[332759655,1721506253555,-500.0,0.00014246,2]
[332759656,1721506253565,-500.0,0.00014246,2]
[332759657,1721506253575,-1589.98,0.00014246,2]
[332759658,1721506253584,-819.74,0.00014246,2]
[332759659,1721506253595,-500.0,0.00014246,2]
[332759660,1721506253605,-582.80298837,0.00014246,2]
[332759661,1721506253615,-500.0,0.00014246,2]
[332759662,1721506253626,-649.13,0.00014246,2]
[332759663,1721506253635,-946.12,0.00014246,2]
[332759664,1721506253645,-500.0,0.00014246,2]
[332759665,1721506253656,-812.17,0.00014246,2]
[332759666,1721506253667,-919.91,0.00014246,2]
[332759667,1721506253676,-500.0,0.00014246,2]
[332759668,1721506253686,-558.69,0.00014246,2]
[332759669,1721506253696,-1872.07,0.00014246,2]
[332759670,1721506253706,-500.0,0.00014246,2]
[332759671,1721506253717,-503.50562691,0.00014246,2]
[332759672,1721506253726,-500.0,0.00014246,2]
[332759673,1721506253737,-500.0,0.00014246,2]
[332759674,1721506253747,-2041.58,0.00014246,2]
[332759675,1721506253756,-500.0,0.00014246,2]
[332759676,1721506253765,-547.96,0.00014246,2]
[332759677,1721506253774,-500.0,0.00014246,2]
[332759678,1721506253783,-500.0,0.00014246,2]
[332759679,1721506253792,-1080.3,0.00014246,2]
[332759680,1721506253804,-500.0,0.00014246,2]
[332759681,1721506253814,-1142.56,0.00014246,2]
[332759682,1721506253826,-500.0,0.00014246,2]
[332759683,1721506253835,-500.0,0.00014246,2]
[332759684,1721506253846,-500.0,0.00014246,2]
[332759685,1721506253856,-500.0,0.00014246,2]
[332759686,1721506253869,-500.0,0.00014246,2]
[332759687,1721506253889,-545.40045561,0.00014246,2]
[332759688,1721506253899,-500.0,0.00014246,2]
[332759689,1721506253913,-500.0,0.00014246,2]
[332759690,1721506253923,-1930.7,0.00014246,2]
[332759691,1721506253932,-594.58,0.00014246,2]
[332759692,1721506253942,-1118.49,0.00014246,2]
[332759693,1721506253954,-500.0,0.00014246,2]
[332759694,1721506253964,-4107.87,0.00014246,2]
[332759695,1721506253973,-500.0,0.00014246,2]
[332759696,1721506253983,-500.0,0.00014246,2]
[332759697,1721506253993,-659.5,0.00014246,2]
[332759698,1721506254003,-1031.35,0.00014246,2]
[332759699,1721506254013,-783.15,0.00014246,2]
[332759700,1721506254022,-500.0,0.00014246,2]
[332759701,1721506254031,-513.99920471,0.00014246,2]
[332759702,1721506254041,-208.87,0.00014246,2]
[332759703,1721506254052,-500.0,0.00014246,2]
[332759704,1721506254062,-583.96,0.00014246,2]
[332759705,1721506254071,-500.0,0.00014246,2]
[332759706,1721506254081,-500.0,0.00014246,2]
[332759707,1721506254090,-500.0,0.00014246,2]
[332759708,1721506254099,-659.36,0.00014246,2]
[332759709,1721506254109,-500.0,0.00014246,2]
[332759710,1721506254118,-500.0,0.00014246,2]
[332759711,1721506254127,-500.0,0.00014246,2]
[332759712,1721506254136,-612.0,0.00014246,2]
[332759713,1721506254145,-500.0,0.00014246,2]
[332759714,1721506254155,-500.0,0.00014246,2]
[332759715,1721506254164,-500.0,0.00014246,2]
[332759716,1721506254173,-500.0,0.00014246,2]
[332759717,1721506254183,-560.63,0.00014246,2]
[332759718,1721506254192,-527.11963763,0.00014246,2]
[332759719,1721506254201,-535.04,0.00014246,2]
[332759720,1721506254210,-1811.52,0.00014246,2]
[332759721,1721506254219,-500.0,0.00014246,2]
[332759722,1721506254229,-897.56,0.00014246,2]
[332759723,1721506254238,-500.0,0.00014246,2]
[332759724,1721506254248,-500.0,0.00014246,2]
[332759725,1721506254257,-500.0,0.00014246,2]
[332759726,1721506254267,-1282.95,0.00014246,2]
[332759727,1721506254276,-500.0,0.00014246,2]
[332759728,1721506254285,-500.0,0.00014246,2]
[332759729,1721506254294,-779.56,0.00014246,2]
[332759730,1721506254303,-500.0,0.00014246,2]
[332759731,1721506254313,-500.0,0.00014246,2]
[332759732,1721506254322,-500.0,0.00014246,2]
[332759733,1721506254332,-825.74,0.00014246,2]
[332759734,1721506254341,-500.0,0.00014246,2]
[332759735,1721506254350,-652.79,0.00014246,2]
[332759736,1721506254359,-500.0,0.00014246,2]
[332759737,1721506254369,-500.0,0.00014246,2]
[332759738,1721506254378,-2620.27,0.00014246,2]
[332759739,1721506254388,-539.26,0.00014246,2]
[332759740,1721506254398,-1804.4,0.00014246,2]
[332759741,1721506254407,-381.21198987,0.00014246,2]
[332759742,1721506254418,-500.0,0.00014246,2]
[332759743,1721506254427,-150.0,0.00014246,2]
[332759744,1721506254437,-500.0,0.00014246,2]
[332759745,1721506254446,-1766.9,0.00014246,2]
[332759746,1721506254455,-2146.19,0.00014246,2]
[332759747,1721506254465,-500.0,0.00014246,2]
[332759748,1721506254475,-500.0,0.00014246,2]
[332759749,1721506254484,-500.0,0.00014246,2]
[332759750,1721506254493,-500.0,0.00014246,2]
[332759751,1721506254503,-569.67,0.00014246,2]
[332759752,1721506254513,-507.62,0.00014246,2]
[332759753,1721506254522,-500.0,0.00014246,2]
[332759754,1721506254531,-500.0,0.00014246,2]
[332759755,1721506254540,-500.0,0.00014246,2]
[332759756,1721506254550,-500.0,0.00014246,2]
[332759757,1721506254559,-500.0,0.00014246,2]
[332759758,1721506254568,-2168.23,0.00014246,2]
[332759759,1721506254577,-500.0,0.00014246,2]
[332759760,1721506254586,-921.42,0.00014246,2]
[332759761,1721506254595,-2063.58,0.00014246,2]
[332759762,1721506254605,-1393.65,0.00014246,2]
[332759763,1721506254614,-500.0,0.00014246,2]
[332759764,1721506254624,-500.0,0.00014246,2]
[332759765,1721506254633,-352.51834169,0.00014246,2]
[332759766,1721506254642,-500.0,0.00014246,2]
[332759767,1721506254652,-500.0,0.00014246,2]
[332759768,1721506254661,-500.0,0.00014246,2]
[332759769,1721506254671,-541.46,0.00014246,2]
[332759770,1721506254680,-500.0,0.00014246,2]
[332759771,1721506254689,-854.68,0.00014246,2]
[332759772,1721506254699,-500.0,0.00014246,2]
[332759773,1721506254708,-921.43,0.00014246,2]
[332759774,1721506254717,-255.62,0.00014246,2]
[332759775,1721506254726,-721.38,0.00014246,2]
[332759776,1721506254736,-724.24,0.00014246,2]
[332759777,1721506254745,-500.0,0.00014246,2]
[332759778,1721506254754,-1791.92,0.00014246,2]
[332759779,1721506254764,-653.08,0.00014246,2]
[332759780,1721506254773,-500.0,0.00014246,2]
[332759781,1721506254781,-517.33,0.00014246,2]
[332759782,1721506254792,-510.82,0.00014246,2]
[332759783,1721506254802,-500.0,0.00014246,2]
[332759784,1721506254812,-500.0,0.00014246,2]
[332759785,1721506254821,-500.0,0.00014246,2]
[332759786,1721506254832,-699.32,0.00014246,2]
[332759787,1721506254841,-763.32,0.00014246,2]
[332759788,1721506254850,-500.0,0.00014246,2]
[332759789,1721506254860,-683.83,0.00014246,2]
[332759790,1721506254872,-500.0,0.00014246,2]
[332759791,1721506254881,-500.0,0.00014246,2]
[332759792,1721506254891,-2216.14,0.00014246,2]
[332759793,1721506254899,-9974.88,0.00014246,2]
[332759794,1721506254908,-1069.52,0.00014246,2]
[332759795,1721506254918,-1566.01,0.00014246,2]
[332759796,1721506254928,-3824.39,0.00014246,2]
[332759797,1721506254937,-500.0,0.00014246,2]
[332759798,1721506254946,-500.0,0.00014246,2]
[332759799,1721506254956,-500.0,0.00014246,2]
[332759800,1721506254966,-1003.63,0.00014246,2]
[332759801,1721506254975,-601.56,0.00014246,2]
[332759802,1721506254984,-2356.17,0.00014246,2]
[332759803,1721506254993,-2207.67,0.00014246,2]
[332759804,1721506255003,-500.0,0.00014246,2]
[332759805,1721506255012,-500.0,0.00014246,2]
[332759806,1721506255021,-4640.9,0.00014246,2]
[332759807,1721506255030,-737.43,0.00014246,2]
[332759808,1721506255040,-5614.66,0.00014246,2]
[332759809,1721506255050,-616.11,0.00014246,2]
[332759810,1721506255059,-2074.95,0.00014246,2]
[332759811,1721506255069,-626.98,0.00014246,2]
[332759812,1721506255079,-500.0,0.00014246,2]
[332759813,1721506255089,-696.35,0.00014246,2]
[332759814,1721506255098,-1193.56,0.00014246,2]
[332759815,1721506255108,-151.0,0.00014246,2]
[332759816,1721506255117,-1357.75,0.00014246,2]
[332759817,1721506255127,-500.0,0.00014246,2]
[332759818,1721506255137,-2413.95,0.00014246,2]
[332759819,1721506255146,-1278.57,0.00014246,2]
[332759820,1721506255157,-500.0,0.00014246,2]
[332759821,1721506255167,-500.0,0.00014246,2]
[332759822,1721506255177,-230.590942,0.00014246,2]
[332759823,1721506255186,-500.0,0.00014246,2]
[332759824,1721506255196,-500.0,0.00014246,2]
[332759825,1721506255205,-500.0,0.00014246,2]
[332759826,1721506255215,-500.0,0.00014246,2]
[332759827,1721506255224,-500.0,0.00014246,2]
[332759828,1721506255234,-500.0,0.00014246,2]
[332759829,1721506255244,-500.0,0.00014246,2]
[332759830,1721506255253,-2479.41,0.00014246,2]
[332759831,1721506255263,-500.0,0.00014246,2]
[332759832,1721506255272,-3568.54,0.00014246,2]
[332759833,1721506255282,-653.69,0.00014246,2]
[332759834,1721506255292,-500.0,0.00014246,2]
[332759835,1721506255301,-653.11,0.00014246,2]
[332759836,1721506255311,-596.66,0.00014246,2]
[332759837,1721506255321,-591.95,0.00014246,2]
[332759838,1721506255331,-500.0,0.00014246,2]
[332759839,1721506255341,-500.0,0.00014246,2]
[332759840,1721506255350,-3611.41,0.00014246,2]
[332759841,1721506255360,-500.0,0.00014246,2]
[332759842,1721506255369,-1615.36,0.00014246,2]
[332759843,1721506255379,-2182.76,0.00014246,2]
[332759844,1721506255388,-251.91577685,0.00014246,2]
[332759845,1721506255397,-1876.24,0.00014246,2]
[332759846,1721506255407,-521.4783236,0.00014246,2]
[332759847,1721506255417,-500.0,0.00014246,2]
[332759848,1721506255427,-922.66,0.00014246,2]
[332759849,1721506255436,-647.58,0.00014246,2]
[332759850,1721506255445,-353.74643827,0.00014246,2]
[332759851,1721506255455,-630.5,0.00014246,2]
[332759852,1721506255464,-874.33,0.00014246,2]
[332759853,1721506255474,-972.5,0.00014246,2]
[332759854,1721506255484,-9525.09,0.00014246,2]
[332759855,1721506255494,-500.0,0.00014246,2]
[332759856,1721506255503,-500.0,0.00014246,2]
[332759857,1721506255512,-500.0,0.00014246,2]
[332759858,1721506255522,-500.0,0.00014246,2]
[332759859,1721506255532,-500.0,0.00014246,2]
[332759860,1721506255541,-500.0,0.00014246,2]
[332759861,1721506255551,-2915.71,0.00014246,2]
[332759862,1721506255561,-500.0,0.00014246,2]
[332759863,1721506255571,-500.0,0.00014246,2]
[332759864,1721506255581,-660.13,0.00014246,2]
[332759865,1721506255590,-500.0,0.00014246,2]
[332759866,1721506255599,-500.0,0.00014246,2]
[332759867,1721506255609,-18390.94,0.00014246,2]
[332759868,1721506255618,-505.99,0.00014246,2]
[332759869,1721506255628,-3666.66,0.00014246,2]
[332759870,1721506255637,-500.0,0.00014246,2]
[332759871,1721506255647,-2974.58,0.00014246,2]
[332759872,1721506255657,-151.0,0.00014246,2]
[332759873,1721506255667,-500.0,0.00014246,2]
[332759874,1721506255677,-1139.9,0.00014246,2]
[332759875,1721506255686,-151.0,0.00014246,2]
[332759876,1721506255695,-2007.77,0.00014246,2]
[332759877,1721506255705,-2230.68,0.00014246,2]
[332759878,1721506255715,-500.0,0.00014246,2]
[332759879,1721506255726,-3008.42,0.00014246,2]
[332759880,1721506255738,-5451.22,0.00014246,2]
[332759881,1721506255748,-650.96,0.00014246,2]
[332759882,1721506255757,-664.55,0.00014246,2]
[332759883,1721506255767,-500.0,0.00014246,2]
[332759884,1721506255776,-1424.47,0.00014246,2]
[332759885,1721506255787,-500.0,0.00014246,2]
[332759886,1721506255797,-500.0,0.00014246,2]
[332759887,1721506255807,-500.0,0.00014246,2]
[332759888,1721506255817,-4967.36,0.00014246,2]
[332759889,1721506255829,-500.0,0.00014246,2]
[332759890,1721506255841,-500.0,0.00014246,2]
[332759891,1721506255852,-3110.77,0.00014246,2]
[332759892,1721506255865,-504.22135143,0.00014246,2]
[332759893,1721506255875,-4593.9,0.00014246,2]
[332759894,1721506255884,-2600.56,0.00014246,2]
[332759895,1721506255894,-1077.09,0.00014246,2]
[332759896,1721506255904,-7347.6,0.00014246,2]
[332759897,1721506255917,-512.59,0.00014246,2]
[332759898,1721506255929,-501.72983271,0.00014246,2]
[332759899,1721506255943,-500.0,0.00014246,2]
[332759900,1721506255953,-500.0,0.00014246,2]
[332759901,1721506255963,-585.32,0.00014246,2]
[332759902,1721506255972,-774.02,0.00014246,2]
[332759903,1721506255982,-500.0,0.00014246,2]
[332759904,1721506255993,-11096.32,0.00014246,2]
[332759905,1721506256003,-502.63355936,0.00014246,2]
[332759906,1721506256013,-500.0,0.00014246,2]
[332759907,1721506256024,-694.69,0.00014246,2]
[332759908,1721506256035,-1940.47,0.00014246,2]
[332759909,1721506256046,-1320.32,0.00014246,2]
[332759910,1721506256057,-157.78037707,0.00014246,2]
[332759911,1721506256067,-573.91,0.00014246,2]
[332759912,1721506256077,-2632.34,0.00014246,2]
[332759913,1721506256088,-1034.45,0.00014246,2]
[332759914,1721506256098,-500.0,0.00014246,2]
[332759915,1721506256111,-769.84,0.00014246,2]
[332759916,1721506256121,-9556.66,0.00014246,2]
[332759917,1721506256132,-500.0,0.00014246,2]
[332759918,1721506256143,-3096.48,0.00014246,2]
[332759919,1721506256153,-500.0,0.00014246,2]
[332759920,1721506256163,-500.0,0.00014246,2]
[332759921,1721506256175,-502.87,0.00014246,2]
[332759922,1721506256185,-516.51303496,0.00014246,2]
[332759923,1721506256195,-819.96,0.00014246,2]
[332759924,1721506256205,-500.0,0.00014246,2]
[332759925,1721506256214,-3023.06,0.00014246,2]
[332759926,1721506256223,-500.0,0.00014246,2]
[332759927,1721506256233,-500.0,0.00014246,2]
[332759928,1721506256242,-500.0,0.00014246,2]
[332759929,1721506256252,-500.0,0.00014246,2]
[332759930,1721506256262,-1149.23,0.00014246,2]
[332759931,1721506256271,-453.62559309,0.00014246,2]
[332759932,1721506256281,-1214.52,0.00014246,2]
[332759933,1721506256290,-500.0,0.00014246,2]
[332759934,1721506256300,-500.0,0.00014246,2]
[332759935,1721506256310,-500.0,0.00014246,2]
[332759936,1721506256319,-500.0,0.00014246,2]
[332759937,1721506256329,-500.0,0.00014246,2]
[332759938,1721506256339,-500.0,0.00014246,2]
[332759939,1721506256350,-500.0,0.00014246,2]
[332759940,1721506256361,-500.0,0.00014246,2]
[332759941,1721506256371,-500.0,0.00014246,2]
[332759942,1721506256382,-848.62,0.00014246,2]
[332759943,1721506256392,-1494.97,0.00014246,2]
[332759944,1721506256403,-2011.6,0.00014246,2]
[332759945,1721506256414,-1089.64,0.00014246,2]
[332759946,1721506256423,-1294.05,0.00014246,2]
[332759947,1721506256433,-575.38,0.00014246,2]
[332759948,1721506256443,-14274.59,0.00014246,2]
[332759949,1721506256453,-500.0,0.00014246,2]
[332759950,1721506256463,-500.0,0.00014246,2]
[332759951,1721506256475,-902.47,0.00014246,2]
[332759952,1721506256486,-1276.73,0.00014246,2]
[332759953,1721506256497,-34531.25,0.00014246,2]
[332759954,1721506256507,-942.04,0.00014246,2]
[332759955,1721506256519,-500.0,0.00014246,2]
[332759956,1721506256530,-500.0,0.00014246,2]
[332759957,1721506256541,-1528.42,0.00014246,2]
[332759958,1721506256552,-500.0,0.00014246,2]
[332759959,1721506256563,-500.0,0.00014246,2]
[332759960,1721506256574,-2180.31,0.00014246,2]
[332759961,1721506256585,-533.02,0.00014246,2]
[332759962,1721506256597,-500.0,0.00014246,2]
[332759963,1721506256606,-997.36,0.00014246,2]
[332759964,1721506256617,-1611.73,0.00014246,2]
[332759965,1721506256630,-500.0,0.00014246,2]
[332759966,1721506256641,-500.0,0.00014246,2]
[332759967,1721506256651,-500.0,0.00014246,2]
[332759968,1721506256661,-500.0,0.00014246,2]
[332759969,1721506256673,-807.74,0.00014246,2]
[332759970,1721506256683,-500.0,0.00014246,2]
[332759971,1721506256695,-514.71,0.00014246,2]
[332759972,1721506256705,-2554.46,0.00014246,2]
[332759973,1721506256714,-3088.33,0.00014246,2]
[332759974,1721506256724,-2477.78,0.00014246,2]
[332759975,1721506256734,-500.0,0.00014246,2]
[332759976,1721506256743,-500.0,0.00014246,2]
[332759977,1721506256753,-753.14,0.00014246,2]
[332759978,1721506256762,-500.0,0.00014246,2]